bitfinex/quotes_BTCUSD_20260103
["timestamp","ask_amount","ask_price","bid_price","bid_amount"]
[1767452838795,0.01111358,89980.0,89975.0,0.01111419]
[1767452839587,0.06025503,89980.0,89975.0,0.01111419]
[1767452840101,0.0111137,89979.0,89974.0,0.01111432]
[1767452840316,0.0111137,89979.0,89975.0,0.01111419]
[1767452840470,0.0111137,89979.0,89974.0,0.01111432]
[1767452840658,0.000999,89974.0,89971.0,0.01111469]
[1767452841246,0.01111382,89978.0,89974.0,0.01111432]
[1767452841417,0.01111382,89978.0,89973.0,0.01111444]
[1767452842360,0.01111395,89977.0,89973.0,0.01111444]
[1767452842566,0.01111382,89978.0,89972.0,0.01111456]
[1767452843012,0.01111382,89978.0,89974.0,0.01111432]
[1767452844097,0.01111345,89981.0,89976.0,0.01111407]
[1767452844308,0.06667869,89984.0,89977.0,0.05826263]
[1767452844466,0.04914145,89999.0,89978.0,0.10271736]
[1767452844467,0.05556449,89986.0,89978.0,0.10271736]
[1767452845304,0.01111296,89985.0,89980.0,0.01111358]
[1767452845554,0.01111296,89985.0,89979.0,0.0111137]
[1767452845555,0.01111308,89984.0,89979.0,0.00821742]
[1767452845755,0.01111321,89983.0,89979.0,0.00821742]
[1767452846129,0.01111308,89984.0,89979.0,0.00821742]
[1767452846328,0.01111321,89983.0,89978.0,0.0582625]
[1767452846567,0.01111333,89982.0,89978.0,0.04714868]
[1767452846731,0.01111321,89983.0,89978.0,0.0582625]
[1767452847528,0.01111321,89983.0,89979.0,0.0111137]
[1767452848351,0.01111296,89985.0,89979.0,0.0111137]
[1767452848546,0.01111321,89983.0,89978.0,0.0582625]
[1767452848930,0.01111308,89984.0,89979.0,0.0111137]
[1767452850870,0.01111321,89983.0,89979.0,0.0111137]
[1767452851076,0.01111234,89990.0,89985.0,0.05662324]
[1767452851279,0.02223234,89990.0,89985.0,0.05662324]
[1767452851576,0.01111246,89989.0,89985.0,0.01111296]
[1767452851937,0.02223234,89990.0,89985.0,0.01111296]
[1767452852139,0.02223234,89990.0,89986.0,0.01111283]
[1767452852781,0.02223234,89990.0,89985.0,0.01111296]
[1767452853001,0.01111234,89990.0,89985.0,0.01111296]
[1767452853229,0.01111234,89990.0,89986.0,0.01111283]
[1767452853434,0.02223197,89993.0,89989.0,0.01111246]
[1767452853608,0.00408049,89989.0,89987.0,0.01111271]
[1767452853807,0.00308149,89989.0,89987.0,0.01111271]
[1767452854117,0.00308149,89989.0,89985.0,0.01111296]
[1767452854403,0.00308149,89989.0,89986.0,0.01111283]
[1767452856274,0.00308149,89989.0,89986.0,0.06667662]
[1767452856481,0.01112,89993.0,89988.0,0.05662287]
[1767452856867,0.01159151,89997.0,89992.0,0.01111209]
[1767452856868,0.0111116,89996.0,89992.0,0.01111209]
[1767452856992,0.01037055,89995.0,89992.0,0.01011309]
[1767452857195,0.01037055,89994.0,89991.0,0.01111222]
[1767452857396,0.02271151,89997.0,89993.0,0.01111197]
[1767452857600,0.02148578,89996.0,89991.0,0.01111222]
[1767452857817,0.01037418,89995.0,89991.0,0.01111222]
[1767452857994,0.01037418,89994.0,89989.0,0.01111246]
[1767452858181,0.01037809,89993.0,89990.0,0.01111234]
[1767452858386,0.01111185,89994.0,89990.0,0.01111234]
[1767452858623,0.01037833,89993.0,89989.0,0.01111246]
[1767452858836,0.01111209,89992.0,89988.0,0.01111259]
[1767452858986,0.01111209,89992.0,89987.0,0.01111271]
[1767452859186,0.01011062,89991.0,89987.0,0.01111271]
[1767452859417,0.01011062,89991.0,89986.0,0.06667701]
[1767452860129,0.01111271,89987.0,89982.0,0.05576627]
[1767452860368,0.01111283,89986.0,89982.0,0.0002]
[1767452860697,0.06667597,89988.0,89983.0,0.04551028]
[1767452861255,0.01111283,89986.0,89983.0,0.04551028]
[1767452861412,0.01111271,89987.0,89983.0,0.04551028]
[1767452861614,0.06667597,89988.0,89983.0,0.05662349]
[1767452862309,0.01111259,89988.0,89984.0,0.01111308]
[1767452862534,0.01111246,89989.0,89985.0,0.01111296]
[1767452862738,0.01111283,89986.0,89983.0,0.04551028]
[1767452863136,0.06667702,89986.0,89983.0,0.04546639]
[1767452863311,0.01111296,89985.0,89982.0,0.0002]
[1767452863529,0.06667826,89985.0,89982.0,0.0002]
[1767452864197,0.05556605,89983.0,89982.0,0.0002]
[1767452864399,0.06667826,89985.0,89982.0,0.04571028]
[1767452864599,0.06667826,89985.0,89982.0,0.04566639]
[1767452865040,0.01111296,89985.0,89982.0,0.00015611]
[1767452865254,0.01011396,89985.0,89982.0,0.00015611]
[1767452866155,0.01111283,89986.0,89982.0,0.01126944]
[1767452867066,0.01111296,89985.0,89982.0,0.00015611]
[1767452867470,0.01111283,89986.0,89982.0,0.00015611]
[1767452868975,0.01111296,89985.0,89982.0,0.00015611]
[1767452869621,0.01111283,89986.0,89982.0,0.00015611]
[1767452869989,0.01111283,89986.0,89980.0,0.01111358]
[1767452870531,0.01111283,89986.0,89982.0,0.01111333]
[1767452870727,0.01111259,89988.0,89983.0,0.01111321]
[1767452871325,0.01111271,89987.0,89982.0,0.01111333]
[1767452871503,0.000999,89983.0,89981.0,0.01111345]
[1767452871691,0.01111283,89986.0,89981.0,0.01111345]
[1767452872429,0.01111283,89986.0,89982.0,0.01111333]
[1767452872627,0.000999,89982.0,89979.0,0.0111137]
[1767452872829,0.01111296,89985.0,89981.0,0.01111345]
[1767452872973,0.01111283,89986.0,89981.0,0.01111345]
[1767452873556,0.01111283,89986.0,89982.0,0.01111333]
[1767452873755,0.01111296,89985.0,89981.0,0.01111345]
[1767452874551,0.01111296,89985.0,89980.0,0.01111358]
[1767452874857,0.01111283,89986.0,89981.0,0.01111345]
[1767452875056,0.01111271,89987.0,89983.0,0.01111321]
[1767452876900,0.01111259,89988.0,89983.0,0.01111321]
[1767452877591,0.01111259,89988.0,89984.0,0.01111308]
[1767452878526,0.06667512,89989.0,89984.0,0.01111308]
[1767452879451,0.000999,89984.0,89983.0,0.01111321]
[1767452880162,0.0666748,89989.0,89983.0,0.01111321]
[1767452880498,0.01111271,89987.0,89983.0,0.01111321]
[1767452880740,0.01111234,89990.0,89986.0,0.01111283]
[1767452880904,0.01111234,89990.0,89986.0,0.01011383]
[1767452881110,0.01111234,89990.0,89985.0,0.01111296]
[1767452881642,0.06018942,89988.0,89984.0,0.01111308]
[1767452881839,0.04907683,89988.0,89985.0,0.01111296]
[1767452882077,0.01111246,89989.0,89985.0,0.01111296]
[1767452882279,0.01111246,89989.0,89984.0,0.01111308]
[1767452882493,0.01111259,89988.0,89984.0,0.01111308]
[1767452882702,0.0110248,89988.0,89984.0,0.01111308]
[1767452883109,0.01111246,89989.0,89984.0,0.01111308]
[1767452883973,0.01111246,89989.0,89983.0,0.06667878]
[1767452884388,0.06667444,89990.0,89959.0,0.27190088]
[1767452884389,0.01111407,89976.0,89959.0,0.27190088]
[1767452884603,0.02223395,89977.0,89969.0,0.01111493]
[1767452884802,0.01420162,89979.0,89974.0,0.11626365]
[1767452885044,0.02223296,89985.0,89979.0,0.04957773]
[1767452885212,0.01111308,89984.0,89981.0,0.04957773]
[1767452885470,0.01111234,89990.0,89982.0,0.06667999]
[1767452885684,0.01111222,89991.0,89986.0,0.06069056]
[1767452885927,0.01111234,89990.0,89986.0,0.04957773]
[1767452886142,0.01111246,89989.0,89986.0,0.04857873]
[1767452886349,0.05556296,89988.0,89986.0,0.04857873]
[1767452886574,0.22221516,90003.0,89990.0,0.01111234]
[1767452886758,0.01112,89993.0,89990.0,0.03868628]
[1767452886944,0.01112,89993.0,89990.0,0.04979862]
[1767452887536,0.02223197,89993.0,89990.0,0.03868628]
[1767452889632,0.01112,89993.0,89990.0,0.03868628]
[1767452890965,0.02223197,89993.0,89990.0,0.03868628]
[1767452892347,0.00048003,89997.0,89994.0,0.06068958]
[1767452892527,0.02223111,90000.0,89997.0,0.00051897]
[1767452892733,0.00051897,89996.0,89994.0,0.01111185]
[1767452892956,0.00051897,89996.0,89993.0,0.01111197]
[1767452893381,0.00051897,89996.0,89992.0,0.01111209]
[1767452893543,0.000999,89992.0,89990.0,0.01111234]
[1767452894186,0.01111172,89995.0,89990.0,0.01111234]
[1767452895386,0.01111185,89994.0,89989.0,0.01111246]
[1767452897837,0.01163057,89996.0,89991.0,0.01111222]
[1767452897977,0.01111172,89995.0,89989.0,0.01111246]
[1767452898155,0.01111185,89994.0,89993.0,0.00048004]
[1767452898379,0.01111185,89994.0,89993.0,4e-08]
[1767452898786,0.01111172,89995.0,89993.0,4e-08]
[1767452899227,0.06667044,89995.0,89993.0,4e-08]
[1767452903828,0.06718906,89996.0,89993.0,4e-08]
[1767452905451,0.01163057,89996.0,89993.0,4e-08]
[1767452907623,0.01111222,89991.0,89977.0,0.04957773]
[1767452907771,0.01063222,89991.0,89986.0,0.01111283]
[1767452907970,0.06667241,89993.0,89988.0,0.01111259]
[1767452908172,0.01111197,89993.0,89988.0,0.01111259]
[1767452908500,0.01111185,89994.0,89989.0,0.06069019]
[1767452908701,0.01111185,89994.0,89990.0,0.06069007]
[1767452908898,0.01111197,89993.0,89990.0,0.04957773]
[1767452909416,0.01111197,89993.0,89989.0,0.01111246]
[1767452910211,0.01116788,89993.0,89989.0,0.01111246]
[1767452910414,5.591e-05,89993.0,89989.0,0.01111246]
[1767452910997,5.591e-05,89993.0,89990.0,0.06667406]
[1767452911225,5.591e-05,89993.0,89990.0,0.01111234]
[1767452911420,5.591e-05,89993.0,89989.0,0.01111246]
[1767452911652,5.591e-05,89993.0,89990.0,0.01111234]
[1767452913560,5.591e-05,89993.0,89989.0,0.01111246]
[1767452913768,5.591e-05,89993.0,89990.0,0.01111234]
[1767452913923,0.000999,89990.0,89989.0,0.01111246]
[1767452914448,0.01116788,89993.0,89989.0,0.01111246]
[1767452917498,5.591e-05,89993.0,89989.0,0.01111246]
[1767452919543,5.591e-05,89993.0,89988.0,0.01111259]
[1767452919699,0.000999,89989.0,89988.0,0.01111259]
[1767452920019,0.01111209,89992.0,89988.0,0.01111259]
[1767452920214,0.01111222,89991.0,89984.0,0.05556534]
[1767452920377,0.01116788,89993.0,89984.0,0.05556534]
[1767452920934,0.01116788,89993.0,89988.0,0.01111259]
[1767452921339,0.06672816,89993.0,89988.0,0.01111259]
[1767452923740,0.01116788,89993.0,89989.0,0.01111246]
[1767452927153,0.000999,89989.0,89986.0,0.04799788]
[1767452927411,0.000999,89989.0,89986.0,0.05050327]
[1767452927537,0.01111222,89991.0,89987.0,0.01111271]
[1767452928180,0.06667258,89992.0,89987.0,0.01111271]
[1767452929290,0.01111209,89992.0,89988.0,0.01111259]
[1767452930683,0.01111209,89992.0,89988.0,0.01025791]
[1767452931506,5.591e-05,89993.0,89989.0,0.01111246]
[1767452931664,0.01116788,89993.0,89988.0,0.01025791]
[1767452931869,0.01116788,89993.0,89987.0,0.01111271]
[1767452931870,0.000999,89988.0,89987.0,0.01111271]
[1767452932288,0.01111222,89991.0,89987.0,0.01111271]
[1767452932498,0.01111209,89992.0,89987.0,0.01111271]
[1767452932858,0.01111209,89992.0,89988.0,0.01111259]
[1767452933060,0.01111209,89992.0,89988.0,0.0110687]
[1767452936134,0.01111209,89992.0,89988.0,0.01102481]
[1767452936931,0.01111209,89992.0,89988.0,0.01083461]
[1767452939402,0.01111222,89991.0,89985.0,0.01111296]
[1767452939598,0.01111222,89991.0,89985.0,0.06667723]
[1767452939823,0.01111209,89992.0,89987.0,0.01111271]
[1767452940653,5.591e-05,89993.0,89988.0,0.05556296]
[1767452940949,0.01116788,89993.0,89989.0,0.01111246]
[1767452941153,0.01111209,89992.0,89987.0,0.01111271]
[1767452942120,0.01111234,89990.0,89986.0,0.04654602]
[1767452942340,0.01111222,89991.0,89986.0,0.05765885]
[1767452942738,0.01111209,89992.0,89988.0,0.01111259]
[1767452945187,0.01116788,89993.0,89989.0,0.01111246]
[1767452946008,0.000999,89989.0,89988.0,0.01111259]
[1767452946410,0.01111209,89992.0,89988.0,0.01111259]
[1767452948035,0.000999,89988.0,89987.0,0.04654602]
[1767452948413,0.01111234,89990.0,89987.0,0.04654602]
[1767452950077,0.06667457,89990.0,89987.0,0.04654602]
[1767452950270,0.01111234,89990.0,89987.0,0.04654602]
[1767452951255,0.01111234,89990.0,89987.0,0.04554702]
[1767452951903,0.01111234,89990.0,89987.0,0.03732327]
[1767452952055,0.05556234,89989.0,89987.0,0.03732327]
[1767452952235,0.01111234,89990.0,89989.0,0.000999]
[1767452952639,0.01111234,89990.0,89987.0,0.03732327]
[1767452953540,0.01011334,89990.0,89987.0,0.03732327]
[1767452956072,0.06567544,89990.0,89987.0,0.03732327]
[1767452958337,0.03732326,89984.0,89983.0,0.1132248]
[1767452959615,0.03732326,89984.0,89983.0,0.06667878]
[1767452964233,0.01111234,89990.0,89985.0,0.01111296]
[1767452964603,0.01111246,89989.0,89983.0,0.06667878]
[1767452964807,0.01111234,89990.0,89983.0,0.06667878]
[1767452965890,0.01111222,89991.0,89985.0,0.01111296]
[1767452966584,0.01111234,89990.0,89983.0,0.06667878]
[1767452966826,0.01111234,89990.0,89985.0,0.01111296]
[1767452967023,0.01111234,89990.0,89983.0,0.06667878]
[1767452967539,0.01111234,89990.0,89984.0,0.01111308]
[1767452969112,0.01111246,89989.0,89984.0,0.01111308]
[1767452969515,0.01111234,89990.0,89984.0,0.01111308]
[1767452969715,0.00233327,89984.0,89983.0,0.01111321]
[1767452969923,0.00233327,89984.0,89983.0,1e-08]
[1767452970130,0.00233327,89984.0,89983.0,0.01111322]
[1767452970336,0.00233327,89984.0,89982.0,0.06668628]
[1767452970536,0.00233327,89984.0,89983.0,0.01111321]
[1767452970864,0.00233327,89984.0,89982.0,0.06668628]
[1767452971385,0.00233327,89984.0,89983.0,0.01111321]
[1767452973480,0.00233327,89984.0,89983.0,1e-08]
[1767452973871,0.00233327,89984.0,89983.0,0.01111322]
[1767452974077,0.00233327,89984.0,89982.0,0.09939941]
[1767452974277,0.00233327,89984.0,89982.0,0.06710215]
[1767452974533,0.00233327,89984.0,89982.0,0.02264045]
[1767452974816,0.00233327,89984.0,89983.0,1e-08]
[1767452977637,0.00233327,89984.0,89981.0,0.01112]
[1767452977841,0.00233327,89984.0,89980.0,0.06668735]
[1767452978412,0.00233327,89984.0,89980.0,0.05840811]
[1767452979015,0.00233327,89984.0,89981.0,0.01111345]
[1767452979236,0.00233327,89984.0,89980.0,0.05840811]
[1767452980644,0.00233327,89984.0,89981.0,0.01111345]
[1767452981002,0.00226436,89984.0,89981.0,0.06668028]
[1767452982756,0.00226436,89984.0,89982.0,0.05556626]
[1767452983090,0.000999,89982.0,89981.0,0.01111345]
[1767452983251,0.000999,89982.0,89980.0,0.02223358]
[1767452983459,0.00226436,89984.0,89980.0,0.02223358]
[1767452984059,0.00226436,89984.0,89980.0,0.02123458]
[1767452984572,0.00226436,89984.0,89980.0,0.010121]
[1767452984778,0.0111137,89979.0,89959.0,0.04781013]
[1767452984978,0.00226436,89984.0,89978.0,0.00434557]
[1767452985157,0.00226436,89984.0,89976.0,0.01111407]
[1767452985158,0.00226436,89984.0,89975.0,0.04781013]
[1767452985346,0.00226436,89984.0,89974.0,0.01111432]
[1767452985347,0.01111283,89986.0,89977.0,0.05892408]
[1767452985544,0.01111271,89987.0,89978.0,0.04781013]
[1767452985859,0.01111296,89985.0,89978.0,0.04781013]
[1767452986470,0.01111308,89984.0,89978.0,0.04781013]
[1767452986675,0.00127861,89978.0,89977.0,0.05892408]
[1767452986873,0.0012097,89978.0,89977.0,0.05892408]
[1767452989442,0.00112192,89978.0,89977.0,0.05892408]
[1767452991672,0.00112192,89978.0,89977.0,0.04781013]
[1767452992003,0.00112192,89978.0,89977.0,0.04681113]
[1767452992834,0.00105301,89978.0,89977.0,0.04681113]
[1767452994038,5.401e-05,89978.0,89977.0,0.04681113]
[1767452994732,5.401e-05,89978.0,89976.0,0.01111407]
[1767452996371,5.401e-05,89978.0,89977.0,0.05556975]
[1767452996545,5.401e-05,89978.0,89976.0,0.01111407]
[1767452998882,5.401e-05,89978.0,89977.0,0.05556975]
[1767452999067,5.401e-05,89978.0,89977.0,0.0541456]
[1767453000519,5.401e-05,89978.0,89976.0,0.01111407]
[1767453001117,5.401e-05,89978.0,89976.0,0.06668398]
[1767453002303,0.01111283,89986.0,89978.0,0.01111382]
[1767453002604,0.01111283,89986.0,89973.0,0.01111444]
[1767453002605,5.591e-05,89993.0,89981.0,0.01111345]
[1767453002805,0.01112,89992.0,89985.0,0.01111296]
[1767453002981,0.000999,89985.0,89983.0,0.06667871]
[1767453003169,0.01112,89992.0,89983.0,0.06667871]
[1767453003373,0.01111222,89991.0,89983.0,0.01111321]
[1767453003787,0.01111234,89990.0,89983.0,0.01111321]
[1767453004208,0.01111222,89991.0,89983.0,0.01011421]
[1767453005733,0.01111222,89991.0,89983.0,0.00982941]
[1767453005894,0.01111234,89990.0,89981.0,0.06668044]
[1767453006094,0.32917627,89993.0,89990.0,0.04986198]
[1767453006095,5.591e-05,89993.0,89990.0,0.04986198]
[1767453006293,0.01111074,90003.0,89990.0,0.05997532]
[1767453006294,0.01131086,90002.0,89990.0,0.05997532]
[1767453006532,0.01131086,90002.0,89993.0,0.01111197]
[1767453006733,0.01111098,90001.0,89994.0,0.01111185]
[1767453007082,0.01111098,90001.0,89993.0,0.01111197]
[1767453007278,0.01111098,90001.0,89994.0,0.01111185]
[1767453007531,0.01111111,90000.0,89992.0,0.01111209]
[1767453007736,0.01111098,90001.0,89993.0,0.01111197]
[1767453007937,0.01111098,90001.0,89994.0,0.01111185]
[1767453008639,0.01111111,90000.0,89990.0,1e-08]
[1767453008818,0.3291195,90000.0,89990.0,1e-08]
[1767453009641,0.01111172,89995.0,89990.0,1e-08]
[1767453010184,0.0111116,89996.0,89990.0,1e-08]
[1767453011645,0.01159151,89997.0,89990.0,1e-08]
[1767453011845,0.00048003,89997.0,89990.0,1e-08]
[1767453012047,0.00048003,89997.0,89991.0,0.01111222]
[1767453012230,0.00048003,89997.0,89990.0,0.01111235]
[1767453012787,0.01159151,89997.0,89990.0,0.01082757]
[1767453013185,0.01152259,89997.0,89990.0,0.01082757]
[1767453013665,0.00041111,89997.0,89991.0,0.01111222]
[1767453014050,0.00041111,89997.0,89992.0,0.05997506]
[1767453014246,0.00041111,89997.0,89992.0,0.01111209]
[1767453014622,0.00041111,89997.0,89991.0,0.01111222]
[1767453015121,0.00041111,89997.0,89989.0,0.01111246]
[1767453016057,0.01152259,89997.0,89990.0,0.01111234]
[1767453016260,0.00041111,89997.0,89990.0,0.01111234]
[1767453016784,0.01152259,89997.0,89989.0,0.01111246]
[1767453017284,0.0111116,89996.0,89987.0,0.02223271]
[1767453017482,0.01111185,89994.0,89987.0,0.01112]
[1767453017683,0.01111172,89995.0,89987.0,0.02223271]
[1767453018004,0.01111185,89994.0,89987.0,0.01112]
[1767453018500,0.01111209,89992.0,89987.0,0.01112]
[1767453019087,0.01111197,89993.0,89987.0,0.01112]
[1767453019717,0.01111185,89994.0,89987.0,0.02223271]
[1767453019921,0.01111172,89995.0,89987.0,0.02223271]
[1767453020427,0.01111185,89994.0,89987.0,0.02223271]
[1767453020645,0.01111172,89995.0,89987.0,0.02223271]
[1767453021836,0.01111172,89995.0,89988.0,0.01111259]
[1767453022007,0.01111172,89995.0,89988.0,0.0110687]
[1767453022629,0.01111172,89995.0,89987.0,0.02223271]
[1767453022852,0.0111116,89996.0,89988.0,0.01111259]
[1767453023174,0.01152259,89997.0,89989.0,0.01111246]
[1767453023688,0.01152259,89997.0,89990.0,0.01111234]
[1767453023892,0.0111116,89996.0,89989.0,0.01111246]
[1767453024950,0.0111116,89996.0,89988.0,0.01111259]
[1767453025351,0.0111116,89996.0,89988.0,0.0110687]
[1767453028841,0.04749313,89994.0,89989.0,0.01112]
[1767453029044,0.04749313,89994.0,89989.0,0.00109764]
[1767453029269,0.01111172,89995.0,89989.0,0.00109764]
[1767453029675,0.0111116,89996.0,89989.0,0.00109764]
[1767453030555,0.06666967,89996.0,89989.0,0.00109764]
[1767453030983,0.06666967,89996.0,89989.0,0.00105376]
[1767453031181,0.01111172,89995.0,89989.0,0.00105376]
[1767453032392,0.01111172,89995.0,89988.0,0.01112]
[1767453035469,0.01111185,89994.0,89988.0,7.54e-06]
[1767453035960,0.01111172,89995.0,89988.0,7.54e-06]
[1767453036831,0.01111185,89994.0,89988.0,7.54e-06]
[1767453037144,0.01111172,89995.0,89988.0,7.54e-06]
[1767453039645,0.0111116,89996.0,89988.0,7.54e-06]
[1767453039981,0.01111172,89995.0,89988.0,7.54e-06]
[1767453040184,0.0111116,89996.0,89988.0,7.54e-06]
[1767453042088,0.0111116,89996.0,89988.0,0.01112013]
[1767453042290,0.01111172,89995.0,89988.0,7.54e-06]
[1767453042785,0.0111116,89996.0,89988.0,0.01112013]
[1767453042992,0.0111116,89996.0,89988.0,7.54e-06]
[1767453044657,0.01152259,89997.0,89988.0,0.01112013]
[1767453044793,0.0111116,89996.0,89988.0,0.01112013]
[1767453045125,0.01152259,89997.0,89988.0,0.01112013]
[1767453045328,0.01152259,89997.0,89988.0,0.01107625]
[1767453046330,0.01152259,89997.0,89989.0,0.01111246]
[1767453046494,0.01152259,89997.0,89988.0,0.01107625]
[1767453048534,0.0111116,89996.0,89987.0,0.01111271]
[1767453050629,0.0111116,89996.0,89988.0,0.01111259]
[1767453051168,0.01152259,89997.0,89988.0,0.01111259]
[1767453051472,0.0111116,89996.0,89987.0,0.01111271]
[1767453051849,0.01152259,89997.0,89988.0,0.01111259]
[1767453052033,0.01152259,89997.0,89988.0,0.01106871]
[1767453053367,0.01152259,89997.0,89989.0,0.01111246]
[1767453053570,0.01111135,89998.0,89989.0,0.01111246]
[1767453053869,0.01111148,89997.0,89989.0,0.01111246]
[1767453054671,0.01111148,89997.0,89988.0,0.01111259]
[1767453055173,0.01111148,89997.0,89989.0,0.01111246]
[1767453055367,0.0111116,89996.0,89988.0,0.01111259]
[1767453055599,0.0111116,89996.0,89987.0,0.01111271]
[1767453055884,0.01111172,89995.0,89987.0,0.01111271]
[1767453056249,0.01111148,89997.0,89988.0,0.01111259]
[1767453056573,0.01111148,89997.0,89989.0,0.01111246]
[1767453056958,0.01111135,89998.0,89989.0,0.01111246]
[1767453058695,0.01111148,89997.0,89989.0,0.01106858]
[1767453058998,0.01111135,89998.0,89989.0,0.01106858]
[1767453059221,0.01111135,89998.0,89990.0,0.01111234]
[1767453060809,0.01111123,89999.0,89990.0,0.01111234]
[1767453061228,0.0002,90002.0,89994.0,0.01111185]
[1767453061537,0.00426161,89994.0,89992.0,0.01111209]
[1767453061677,0.00426161,89994.0,89992.0,0.01106821]
[1767453062283,0.01126024,90007.0,89997.0,0.01111148]
[1767453062482,0.01112,90006.0,89998.0,0.01111135]
[1767453062896,0.02223037,90006.0,89998.0,0.01111135]
[1767453063302,0.00015,90007.0,90000.0,0.05555504]
[1767453063564,0.00015,90007.0,90003.0,0.05976612]
[1767453063701,0.00015,90007.0,90003.0,0.01097966]
[1767453063904,0.00015,90007.0,90003.0,0.01111074]
[1767453064366,0.00015,90007.0,90004.0,0.01111061]
[1767453064647,0.00015,90007.0,90003.0,0.05976612]
[1767453064845,0.00015,90007.0,90002.0,0.06666517]
[1767453064846,0.00015,90007.0,90002.0,0.01111086]
[1767453065010,0.00015,90007.0,90002.0,0.05976624]
[1767453065188,0.00015,90007.0,90003.0,0.05976612]
[1767453065392,0.00015,90007.0,90003.0,0.04865538]
[1767453065612,0.00015,90007.0,90003.0,0.05972224]
[1767453065817,0.00015,90007.0,90003.0,0.01111074]
[1767453066018,0.01111123,89999.0,89986.0,0.05976821]
[1767453066240,0.0111116,89996.0,89986.0,0.04871129]
[1767453066441,0.0555545,90002.0,89986.0,0.04871129]
[1767453066442,0.06666717,90000.0,89986.0,0.04871129]
[1767453066639,0.01111172,89995.0,89989.0,0.04865538]
[1767453066975,0.0111116,89996.0,89989.0,0.04865538]
[1767453067178,0.01111197,89993.0,89989.0,0.04865538]
[1767453067355,0.01111209,89992.0,89989.0,0.04765638]
[1767453068523,0.01111197,89993.0,89989.0,0.04765638]
[1767453068925,0.05650765,89993.0,89984.0,0.01111308]
[1767453069156,0.01111209,89992.0,89984.0,0.01111308]
[1767453069362,0.05656355,89993.0,89984.0,0.01111308]
[1767453069657,0.05656355,89993.0,89983.0,0.02223321]
[1767453069980,0.01111222,89991.0,89983.0,0.01112]
[1767453070322,0.01111234,89990.0,89983.0,0.01112]
[1767453070526,0.01111246,89989.0,89983.0,0.01112]
[1767453070750,0.01111234,89990.0,89983.0,0.01112]
[1767453071929,0.01111234,89990.0,89983.0,0.0108352]
[1767453072155,0.01111222,89991.0,89983.0,0.0108352]
[1767453072547,0.01111234,89990.0,89983.0,0.0108352]
[1767453073210,0.01111246,89989.0,89983.0,0.0108352]
[1767453073415,0.01111234,89990.0,89984.0,0.04865538]
[1767453073684,0.01111259,89988.0,89983.0,0.0108352]
[1767453073886,0.06667713,89986.0,89983.0,0.0108352]
[1767453074037,0.06667713,89986.0,89983.0,0.05949058]
[1767453074260,0.01667713,89986.0,89983.0,0.05949058]
[1767453074466,0.01111283,89986.0,89983.0,0.05949058]
[1767453074664,0.06667713,89986.0,89983.0,0.05949058]
[1767453075136,0.06667713,89986.0,89983.0,0.05828475]
[1767453075352,0.01111271,89987.0,89983.0,0.05828475]
[1767453075735,0.01111271,89987.0,89974.0,0.01111432]
[1767453075736,0.01111283,89986.0,89974.0,0.01111432]
[1767453075938,0.01111382,89978.0,89970.0,0.01111481]
[1767453076091,0.01111382,89978.0,89970.0,0.01112]
[1767453076634,0.01111395,89977.0,89964.0,0.01111555]
[1767453076843,0.01111395,89977.0,89968.0,0.01111506]
[1767453077288,0.0111137,89979.0,89969.0,0.01111493]
[1767453077490,0.0111137,89979.0,89977.0,0.000999]
[1767453077908,0.01111382,89978.0,89969.0,0.01111493]
[1767453078295,0.01111395,89977.0,89968.0,0.01111506]
[1767453078496,0.01111395,89977.0,89969.0,0.01111493]
[1767453078699,0.01111382,89978.0,89969.0,0.01111493]
[1767453078900,0.01111395,89977.0,89967.0,0.05977056]
[1767453079105,0.01111395,89977.0,89968.0,0.01111506]
[1767453080186,0.01111395,89977.0,89969.0,0.01111493]
[1767453080393,0.01111395,89977.0,89968.0,0.01111506]
[1767453080557,0.01111419,89975.0,89967.0,0.04865538]
[1767453080763,0.06668528,89975.0,89965.0,0.01111543]
[1767453081118,0.01111419,89975.0,89966.0,0.01111531]
[1767453081315,0.06668525,89975.0,89965.0,0.01111543]
[1767453081608,0.01111444,89973.0,89963.0,0.06669786]
[1767453081813,0.01111456,89972.0,89963.0,0.02223568]
[1767453082063,0.01111444,89973.0,89965.0,0.01111543]
[1767453082264,0.01111432,89974.0,89965.0,0.01111543]
[1767453082551,0.01111432,89974.0,89966.0,0.01111531]
[1767453083255,0.01111444,89973.0,89964.0,0.01111555]
[1767453083405,0.01111444,89973.0,89965.0,0.01111543]
[1767453083609,0.01111432,89974.0,89965.0,0.01111543]
[1767453083826,0.01111432,89974.0,89966.0,0.01111531]
[1767453084232,0.01111432,89974.0,89963.0,0.05977538]
[1767453084440,0.01111432,89974.0,89964.0,0.01111555]
[1767453084441,0.01111456,89972.0,89964.0,0.01111555]
[1767453084648,0.01111444,89973.0,89964.0,0.01111555]
[1767453085268,0.01111432,89974.0,89965.0,0.01111543]
[1767453085851,0.01111432,89974.0,89965.0,0.00611543]
[1767453088150,0.06668666,89973.0,89963.0,0.0708472]
[1767453088361,0.01111432,89974.0,89964.0,0.01111555]
[1767453088601,0.01111432,89974.0,89965.0,0.01111543]
[1767453088797,0.01111444,89973.0,89965.0,0.01111543]
[1767453089160,0.01111407,89976.0,89968.0,0.01111506]
[1767453089422,0.01111407,89976.0,89967.0,0.01111518]
[1767453089990,0.01111407,89976.0,89965.0,0.01111543]
[1767453089991,0.01111432,89974.0,89965.0,0.01111543]
[1767453091177,0.01111444,89973.0,89964.0,0.0108308]
[1767453092530,0.01111444,89973.0,89965.0,0.01111543]
[1767453092953,0.04766264,89972.0,89965.0,0.01111543]
[1767453093134,0.01111531,89966.0,89957.0,0.01111642]
[1767453093338,0.01011631,89966.0,89958.0,0.01126629]
[1767453093553,0.32925655,89968.0,89959.0,0.01111617]
[1767453093754,0.01111518,89967.0,89958.0,0.01126629]
[1767453093964,0.32925655,89968.0,89959.0,0.01111617]
[1767453094323,0.32925655,89968.0,89959.0,0.01147539]
[1767453094539,0.01111493,89969.0,89961.0,0.01111592]
[1767453094747,0.01111493,89969.0,89960.0,0.01111605]
[1767453094950,0.01111493,89969.0,89961.0,0.01111592]
[1767453095269,0.01111493,89969.0,89960.0,0.01111605]
[1767453095468,0.01111506,89968.0,89960.0,0.01111605]
[1767453095840,0.37691894,89970.0,89960.0,0.0666963]
[1767453096040,0.37691894,89970.0,89961.0,0.01111592]
[1767453096241,0.31814149,89970.0,89963.0,0.01111568]
[1767453096476,0.01112,89971.0,89964.0,0.01111555]
[1767453096677,0.01112,89971.0,89966.0,0.01111531]
[1767453096881,0.05877609,89981.0,89971.0,0.01111469]
[1767453097038,0.01112,89977.0,89967.0,0.05557548]
[1767453097243,0.02223395,89977.0,89967.0,0.00985634]
[1767453097461,0.02223395,89977.0,89968.0,0.01111506]
[1767453098286,0.01111407,89976.0,89968.0,0.01111506]
[1767453098751,0.01111419,89975.0,89967.0,0.00985634]
[1767453098916,0.000999,89968.0,89965.0,0.01111543]
[1767453099516,0.01111432,89974.0,89965.0,0.01111543]
[1767453099922,0.01111444,89973.0,89964.0,0.01111555]
[1767453100252,0.01111432,89974.0,89966.0,0.01111531]
[1767453100409,0.32925568,89975.0,89967.0,0.01111518]
[1767453100771,0.01112,89977.0,89968.0,0.01111506]